bitfinex/quotes_SOLUSD_20241122
["timestamp","ask_amount","ask_price","bid_price","bid_amount"]
[1732255213998,9.56656638,260.28,260.26,15.5445]
[1732255214158,9.56656638,260.32,260.28,2.5]
[1732255214353,2.84931125,260.31,260.29,2.5]
[1732255214661,2.84931125,260.3,260.29,2.5]
[1732255214970,2.84931125,260.3,260.28,2.5]
[1732255215165,2.84931125,260.29,260.28,2.5]
[1732255215484,2.84931125,260.29,260.26,18.0445]
[1732255215687,2.84931125,260.28,260.26,15.5445]
[1732255215868,9.56656638,260.3,260.27,2.5]
[1732255216074,2.85065683,260.29,260.27,2.5]
[1732255216274,9.56656638,260.3,260.27,2.5]
[1732255216459,2.85146831,260.29,260.27,2.5]
[1732255216659,9.56656638,260.3,260.28,2.5]
[1732255216875,2.85163416,260.29,260.28,2.5]
[1732255217062,9.56656638,260.3,260.28,2.5]
[1732255217463,2.85145749,260.29,260.28,2.5]
[1732255217789,9.56656638,260.3,260.28,5.0]
[1732255218160,2.85149114,260.29,260.26,15.5445]
[1732255218382,12.41805752,260.28,260.26,15.5445]
[1732255218581,9.56656638,260.28,260.26,15.5445]
[1732255219188,2.85159958,260.27,260.25,2.5]
[1732255219480,2.85159958,260.26,260.23,2.5]
[1732255219676,2.85159958,260.25,260.23,2.5]
[1732255219877,9.56656638,260.28,260.23,2.5]
[1732255220082,2.85127311,260.27,260.23,2.5]
[1732255220262,2.85127311,260.26,260.23,2.5]
[1732255220463,2.85127311,260.25,260.23,2.5]
[1732255220758,9.56656638,260.28,260.23,2.5]
[1732255220965,2.84986182,260.27,260.24,2.5]
[1732255221192,2.84986182,260.26,260.25,2.5]
[1732255221372,2.84986182,260.29,260.25,2.5]
[1732255221578,2.84986182,260.28,260.25,2.5]
[1732255221765,2.84986182,260.27,260.25,2.5]
[1732255221965,2.84986182,260.26,260.25,2.5]
[1732255222379,2.84986182,260.29,260.25,2.5]
[1732255222586,2.84986182,260.28,260.25,2.5]
[1732255222769,2.84986182,260.29,260.25,2.5]
[1732255223098,2.84986182,260.28,260.25,2.5]
[1732255223270,9.56656638,260.34,260.29,2.5]
[1732255223663,9.56656638,260.34,260.27,5.0]
[1732255223970,9.56656638,260.32,260.29,2.5]
[1732255224179,9.56656638,260.32,260.27,2.5]
[1732255224376,2.85421939,260.31,260.27,2.5]
[1732255224699,2.85421939,260.3,260.27,2.5]
[1732255224865,2.85421939,260.31,260.27,2.5]
[1732255225067,2.85421939,260.3,260.27,2.5]
[1732255225285,9.56656638,260.28,260.27,2.5]
[1732255225475,12.42078577,260.28,260.23,2.5]
[1732255225680,2.85421939,260.27,260.23,2.5]
[1732255225880,2.85421939,260.27,260.21,5.0]
[1732255226076,2.85421939,260.26,260.21,5.0]
[1732255226276,9.56656638,260.26,260.21,2.5]
[1732255226784,2.85454199,260.25,260.21,2.5]
[1732255227098,9.56656638,260.26,260.21,5.0]
[1732255227390,2.85548742,260.25,260.23,2.5]
[1732255227581,9.56656638,260.26,260.23,2.5]
[1732255227778,2.85566007,260.25,260.23,2.5]
[1732255227974,2.85566007,260.25,260.21,2.5]
[1732255227975,9.56656638,260.26,260.21,5.0]
[1732255228396,9.56656638,260.32,260.27,2.5]
[1732255228689,2.85639337,260.31,260.27,2.5]
[1732255228983,12.42295975,260.3,260.25,2.5]
[1732255229194,9.56656638,260.3,260.25,2.5]
[1732255229598,9.56656638,260.26,260.22,2.5]
[1732255229762,9.56656638,260.26,260.21,2.5]
[1732255230869,9.56656638,260.24,260.19,2.5]
[1732255231893,2.85484847,260.23,260.19,2.5]
[1732255232197,9.56656638,260.22,260.19,2.5]
[1732255232980,9.56656638,260.22,260.17,5.0]
[1732255233177,9.56656638,260.22,260.19,2.5]
[1732255233785,9.56656638,260.24,260.19,2.5]
[1732255233986,2.85055678,260.23,260.19,2.5]
[1732255234186,9.56656638,260.24,260.19,2.5]
[1732255234494,2.85063699,260.23,260.19,2.5]
[1732255234698,9.56656638,260.24,260.17,2.5]
[1732255234893,9.56656638,260.24,260.2,2.5]
[1732255235090,2.85083603,260.23,260.18,2.5]
[1732255235295,9.56656638,260.24,260.18,2.5]
[1732255235486,9.56656638,260.22,260.18,2.5]
[1732255236976,9.56656638,260.22,260.17,2.5]
[1732255237193,9.56656638,260.22,260.19,2.5]
[1732255237388,9.56656638,260.22,260.17,2.5]
[1732255237596,9.56656638,260.22,260.16,2.5]
[1732255237826,9.56656638,260.2,260.16,2.5]
[1732255238003,9.56656638,260.2,260.14,15.2746]
[1732255238180,9.56656638,260.18,260.13,5.0]
[1732255238587,9.56656638,260.16,260.1,2.5]
[1732255238899,9.56656638,260.16,260.12,2.5]
[1732255239101,9.56656638,260.16,260.1,2.5]
[1732255239398,9.56656638,260.12,260.09,2.5]
[1732255240102,9.56656638,260.12,260.09,5.0]
[1732255240313,9.56656638,260.14,260.1,2.5]
[1732255240596,9.56656638,260.18,260.14,2.5]
[1732255242500,45.95058379,260.26,260.21,2.5]
[1732255242501,9.56656638,260.26,260.21,2.5]
[1732255243088,5.96469183,260.39,260.29,2.5]
[1732255243291,9.56656638,260.34,260.29,2.5]
[1732255243582,9.56656638,260.34,260.27,2.5]
[1732255243794,9.56656638,260.34,260.26,2.5]
[1732255243795,9.56656638,260.32,260.26,5.0]
[1732255243998,9.56656638,260.3,260.26,2.5]
[1732255244699,14.93803167,260.3,260.26,2.5]
[1732255245331,14.93803167,260.28,260.24,5.0]
[1732255245497,23.776884,260.38,260.24,2.5]
[1732255245498,14.93803167,260.26,260.24,2.5]
[1732255246112,14.93803167,260.28,260.24,2.5]
[1732255246500,14.93803167,260.3,260.25,2.5]
[1732255247002,23.776884,260.38,260.25,2.5]
[1732255247003,23.776884,260.38,260.28,2.5]
[1732255247214,14.93803167,260.33,260.26,2.5]
[1732255247398,2.83753533,260.32,260.26,2.5]
[1732255247708,14.93803167,260.33,260.26,2.5]
[1732255247888,2.83750755,260.32,260.26,2.5]
[1732255248082,14.93803167,260.33,260.26,2.5]
[1732255248284,2.83762632,260.32,260.26,2.5]
[1732255248494,14.93803167,260.33,260.26,2.5]
[1732255248893,14.93803167,260.31,260.25,2.5]
[1732255249104,14.93803167,260.33,260.29,5.0]
[1732255250984,14.93803167,260.35,260.31,5.0]
[1732255251181,6.3094,260.43,260.34,2.5]
[1732255251384,14.93803167,260.39,260.34,2.5]
[1732255251708,2.83798132,260.38,260.36,2.5]
[1732255252013,2.83798132,260.37,260.36,2.5]
[1732255252386,2.83798132,260.37,260.23,3.832]
[1732255252387,17.77601299,260.37,260.26,2.5]
[1732255252697,14.93803167,260.32,260.26,5.0]
[1732255252895,14.93803167,260.32,260.28,2.5]
[1732255253303,14.93803167,260.39,260.25,2.5]
[1732255253304,14.93803167,260.3,260.25,2.5]
[1732255253684,5.96469183,260.45,260.27,2.5]
[1732255253685,23.776884,260.38,260.27,2.5]
[1732255253989,14.93803167,260.33,260.27,2.5]
[1732255254191,14.93803167,260.31,260.27,2.5]
[1732255255182,5.96469183,260.44,260.31,5.0]
[1732255255408,14.93803167,260.38,260.31,5.0]
[1732255255709,14.93803167,260.36,260.31,2.5]
[1732255256008,2.83751476,260.35,260.31,2.5]
[1732255256189,2.83751476,260.34,260.31,2.5]
[1732255256392,14.93803167,260.36,260.31,5.0]
[1732255256594,2.837581,260.35,260.31,5.0]
[1732255256799,14.93803167,260.36,260.31,5.0]
[1732255257003,2.83761836,260.35,260.31,5.0]
[1732255257208,14.93803167,260.36,260.31,5.0]
[1732255257511,2.83750347,260.35,260.31,5.0]
[1732255257697,14.93803167,260.36,260.31,5.0]
[1732255258009,2.83753656,260.35,260.31,5.0]
[1732255258198,14.93803167,260.36,260.31,5.0]
[1732255258391,2.83748584,260.35,260.31,5.0]
[1732255258592,14.93803167,260.36,260.31,5.0]
[1732255258804,2.83738312,260.35,260.31,5.0]
[1732255259011,14.93803167,260.36,260.31,5.0]
[1732255259310,2.83731919,260.35,260.31,5.0]
[1732255260705,2.83731919,260.35,260.23,23.832]
[1732255260706,14.93803167,260.34,260.29,2.5]
[1732255260913,14.93803167,260.32,260.29,2.5]
[1732255261094,14.93803167,260.32,260.27,2.5]
[1732255261295,14.93803167,260.32,260.28,2.5]
[1732255261608,14.93803167,260.3,260.28,2.5]
[1732255262021,14.93803167,260.3,260.23,5.0]
[1732255262200,14.93803167,260.28,260.25,2.5]
[1732255262403,14.93803167,260.28,260.23,5.0]
[1732255263085,14.93803167,260.28,260.25,2.5]
[1732255263903,14.93803167,260.28,260.26,2.5]
[1732255264401,23.776884,260.38,260.21,6.2444]
[1732255264402,14.93803167,260.34,260.29,2.5]
[1732255264610,2.83680198,260.33,260.29,2.5]
[1732255264810,17.77483365,260.32,260.29,2.5]
[1732255265113,14.93803167,260.34,260.31,5.0]
[1732255265328,2.83701088,260.33,260.31,5.0]
[1732255265489,14.93803167,260.38,260.33,2.5]
[1732255265691,2.837229,260.37,260.35,2.5]
[1732255266001,2.837229,260.36,260.35,2.5]
[1732255266205,14.93803167,260.4,260.35,5.0]
[1732255266406,14.93803167,260.46,260.42,2.5]
[1732255266590,2.83889231,260.45,260.42,2.5]
[1732255266792,2.83889231,260.44,260.42,2.5]
[1732255267092,2.83889231,260.43,260.42,2.5]
[1732255267498,2.83889231,260.43,260.41,2.5]
[1732255267698,2.83889231,260.42,260.41,2.5]
[1732255268215,17.77692398,260.42,260.39,2.5]
[1732255268412,17.77692398,260.42,260.36,2.5]
[1732255268413,2.83889231,260.41,260.38,2.5]
[1732255268593,14.93803167,260.4,260.36,2.5]
[1732255268893,14.93803167,260.38,260.34,21.4579]
[1732255269286,14.93803167,260.36,260.34,5.0]
[1732255270209,14.93803167,260.38,260.36,2.5]
[1732255270419,0.07311263,260.37,260.36,2.5]
[1732255271508,0.07311263,260.37,260.36,5.0]
[1732255273127,0.07311263,260.37,260.36,55.59826817]
[1732255273419,0.07067335,260.38,260.37,43.776884]
[1732255274008,0.07235575,260.4,260.39,26.276884]
[1732255274209,0.08316471,260.41,260.39,26.276884]
[1732255274210,0.08316471,260.41,260.4,43.776884]
[1732255275107,14.93803167,260.6,260.42,48.776884]
[1732255275420,14.93803167,260.6,260.43,43.776884]
[1732255275615,14.93803167,260.6,260.43,59.940984]
[1732255276503,14.93803167,260.6,260.57,2.5]
[1732255276707,2.83079316,260.59,260.57,2.5]
[1732255276927,14.93803167,260.6,260.57,2.5]
[1732255277122,2.82896523,260.59,260.57,2.5]
[1732255277312,14.93803167,260.6,260.59,2.5]
[1732255277802,18.773432,260.73,260.61,2.5]
[1732255277803,14.93803167,260.62,260.61,2.5]
[1732255278123,14.93803167,260.62,260.61,5.0]
[1732255279441,6.648,260.72,260.63,2.5]
[1732255279442,14.93803167,260.64,260.63,2.5]
[1732255279612,14.93803167,260.68,260.65,2.5]
[1732255279933,14.93803167,260.66,260.61,2.5]
[1732255280133,14.93803167,260.62,260.6,2.5]
[1732255281131,14.93803167,260.62,260.54,2.5]
[1732255281437,14.93803167,260.58,260.54,2.5]
[1732255282039,14.93803167,260.56,260.54,2.5]
[1732255282210,14.93803167,260.56,260.52,2.5]
[1732255282409,14.93803167,260.56,260.51,2.5]
[1732255282410,14.93803167,260.56,260.54,2.5]
[1732255283334,14.93803167,260.56,260.53,2.5]
[1732255283924,14.93803167,260.56,260.52,5.0]
[1732255286848,14.93803167,260.58,260.57,2.5]
[1732255288444,14.93803167,260.64,260.61,5.0]
[1732255288619,14.93803167,260.66,260.65,2.5]
[1732255290047,14.93803167,260.66,260.62,2.5]
[1732255290249,15.01786919,260.66,260.62,2.5]
[1732255291140,14.93803167,260.64,260.61,2.5]
[1732255291331,14.93803167,260.64,260.51,20.0]
[1732255291332,14.93803167,260.62,260.58,5.0]
[1732255291646,14.93803167,260.59,260.58,2.5]
[1732255292143,14.93803167,260.59,260.56,5.0]
[1732255292327,14.93803167,260.59,260.58,2.5]
[1732255292744,14.93803167,260.59,260.58,5.0]
[1732255293944,14.93803167,260.61,260.6,2.5]
[1732255294134,14.93803167,260.61,260.6,5.0]
[1732255294846,14.93803167,260.61,260.6,2.5]
[1732255295018,14.93803167,260.61,260.58,2.5]
[1732255295225,14.93803167,260.59,260.56,5.0]
[1732255296945,14.93803167,260.59,260.58,2.5]
[1732255298444,14.93803167,260.59,260.56,5.0]
[1732255299023,14.93803167,260.65,260.5,15.5506]
[1732255299024,14.93803167,260.57,260.53,5.0]
[1732255299446,14.93803167,260.57,260.55,5.0]
[1732255300648,14.93803167,260.63,260.59,2.5]
[1732255301741,14.93803167,260.61,260.58,2.5]
[1732255302422,14.93803167,260.59,260.55,2.5]
[1732255302628,14.93803167,260.56,260.53,2.5]
[1732255303037,14.93803167,260.56,260.54,2.5]
[1732255304149,14.93803167,260.56,260.55,2.5]
[1732255304449,14.93803167,260.56,260.53,2.5]
[1732255304645,14.93803167,260.54,260.53,2.5]
[1732255305371,14.93803167,260.54,260.51,5.0]
[1732255306222,14.93803167,260.54,260.53,5.0]
[1732255307042,14.93803167,260.54,260.53,2.5]
[1732255307547,14.93803167,260.54,260.49,5.0]
[1732255307748,14.93803167,260.52,260.49,5.0]
[1732255308952,14.93803167,260.52,260.51,2.5]
[1732255309553,14.93803167,260.54,260.51,2.5]
[1732255309857,14.93803167,260.54,260.53,2.5]
[1732255310041,14.93803167,260.54,260.52,2.5]
[1732255310237,15.01150177,260.54,260.5,2.5]
[1732255312261,15.01150177,260.54,260.53,2.5]
[1732255312435,0.0734701,260.54,260.53,5.0]
[1732255312635,0.0734701,260.54,260.53,2.5]
[1732255312891,15.01150177,260.54,260.49,5.0]
[1732255313057,14.93803167,260.52,260.51,2.5]
[1732255313354,15.01150177,260.54,260.51,5.0]
[1732255313529,0.0734701,260.54,260.53,5.0]
[1732255319457,0.0734701,260.54,260.53,25.0]
[1732255320149,0.0734701,260.54,260.53,4.877201]
[1732255320641,0.0734701,260.54,260.53,40.62767363]
[1732255321243,0.0734701,260.54,260.53,64.40455763]
[1732255323057,0.0734701,260.54,260.53,63.828985]
[1732255323260,0.0734701,260.54,260.53,40.052101]
[1732255324747,0.0734701,260.54,260.53,4.877201]
[1732255331543,0.07403877,260.59,260.53,4.877201]
[1732255331544,14.93803167,260.61,260.53,4.877201]
[1732255331869,14.93803167,260.61,260.6,4.877201]
[1732255332166,17.78049553,260.61,260.6,4.877201]
[1732255332759,12.37994595,260.61,260.6,4.877201]
[1732255333062,12.37994595,260.61,260.6,2.5]
[1732255333462,12.37994595,260.61,260.6,4.877201]
[1732255334153,2.84246386,260.61,260.6,4.877201]
[1732255335566,2.84246386,260.61,260.58,4.877201]
[1732255335746,12.37994595,260.6,260.56,2.5]
[1732255335946,9.53748209,260.58,260.57,2.377201]
[1732255336167,12.37994595,260.58,260.57,2.377201]
[1732255336476,2.84576731,260.58,260.57,2.377201]
[1732255339772,2.84521733,260.58,260.57,2.377201]
[1732255343072,12.44539183,260.7,260.57,2.377201]
[1732255343281,9.53748209,260.61,260.59,2.377201]
[1732255343460,2.84512438,260.6,260.59,4.877201]
[1732255344651,2.84512438,260.6,260.53,4.877201]
[1732255344847,9.53748209,260.61,260.53,2.377201]
[1732255344848,9.53748209,260.54,260.53,2.377201]
[1732255345273,12.3826343,260.54,260.53,4.877201]
[1732255346469,12.3826343,260.54,260.53,2.377201]
[1732255347082,12.38194933,260.54,260.53,2.377201]
[1732255347369,9.53748209,260.54,260.53,2.377201]
[1732255347574,12.38194588,260.54,260.53,2.377201]
[1732255347751,12.38194588,260.54,260.53,4.877201]
[1732255352254,12.38194588,260.54,260.53,2.377201]
[1732255352455,12.38194588,260.54,260.51,2.377201]
[1732255352667,9.53748209,260.52,260.51,2.377201]
[1732255352970,12.38194588,260.52,260.51,2.377201]
[1732255353672,50.53187424,260.52,260.45,4.877201]
[1732255353976,12.37780792,260.51,260.48,2.5]
[1732255354283,2.84032583,260.5,260.48,2.5]
[1732255354782,9.53748209,260.49,260.48,2.5]
[1732255354974,12.37780792,260.49,260.48,2.5]
[1732255355684,12.37780792,260.49,260.38,20.0]
[1732255355685,12.37780792,260.49,260.42,2.5]
[1732255355981,9.53748209,260.44,260.4,2.5]
[1732255356184,9.53748209,260.44,260.42,2.5]
[1732255356686,9.53748209,260.44,260.41,2.377201]
[1732255358088,23.776884,260.5,260.41,2.377201]
[1732255358387,9.53748209,260.43,260.41,2.377201]
[1732255358583,9.53748209,260.43,260.39,2.377201]
[1732255359084,9.53748209,260.43,260.42,2.377201]
[1732255359278,9.53748209,260.45,260.42,2.377201]
[1732255359967,9.53748209,260.48,260.45,2.5]
[1732255360171,2.83370948,260.47,260.45,2.5]
[1732255360373,2.83370948,260.46,260.45,2.5]
[1732255360984,9.53748209,260.48,260.45,2.5]
[1732255361169,9.53748209,260.46,260.44,2.377201]
[1732255361484,9.53748209,260.46,260.42,2.377201]
[1732255361680,9.53748209,260.44,260.42,2.377201]
[1732255362184,9.53748209,260.44,260.35,20.0]
[1732255362185,9.53748209,260.44,260.4,2.377201]
[1732255362364,9.53748209,260.42,260.4,2.377201]
[1732255362690,9.53748209,260.45,260.43,2.5]
[1732255364868,16.1417,260.51,260.47,2.5]
[1732255365069,9.53748209,260.49,260.47,2.5]
[1732255365271,2.82898044,260.48,260.47,2.5]
[1732255366074,2.82898044,260.48,260.45,4.877201]
[1732255366389,9.53748209,260.49,260.45,4.877201]
[1732255366572,2.82807899,260.48,260.45,4.877201]
[1732255366889,9.53748209,260.49,260.45,4.877201]
[1732255367068,9.53748209,260.47,260.45,4.877201]
[1732255367478,9.53748209,260.47,260.43,4.877201]
[1732255367686,9.53748209,260.45,260.43,4.877201]
[1732255371772,9.53748209,260.49,260.46,2.5]
[1732255372080,2.82682949,260.48,260.47,2.377201]
[1732255372794,9.53748209,260.49,260.47,2.377201]
[1732255375688,9.53748209,260.51,260.47,2.377201]
[1732255375994,2.82705972,260.5,260.47,2.377201]
[1732255376175,2.82705972,260.49,260.47,2.377201]
[1732255376381,9.53748209,260.51,260.47,2.377201]
[1732255376578,9.53748209,260.51,260.5,2.5]
[1732255376895,2.827222,260.51,260.5,2.5]
[1732255377119,2.827222,260.51,260.49,2.377201]
[1732255377276,9.53748209,260.53,260.49,2.377201]
[1732255377472,2.82757769,260.52,260.49,2.377201]
[1732255377688,2.82757769,260.51,260.49,2.377201]
[1732255377909,9.53748209,260.51,260.49,2.377201]
[1732255378084,2.82788403,260.5,260.48,2.5]
[1732255378402,9.53748209,260.51,260.49,2.377201]
[1732255378597,2.82773795,260.5,260.49,2.377201]
[1732255379397,2.82773795,260.5,260.47,2.377201]
[1732255379587,9.53748209,260.51,260.47,2.377201]
[1732255379782,2.82772844,260.5,260.47,2.377201]
[1732255379989,9.53748209,260.49,260.45,2.377201]
[1732255380182,2.82709949,260.48,260.45,2.377201]
[1732255380382,9.53748209,260.49,260.47,4.877201]
[1732255380687,9.53748209,260.51,260.49,2.377201]
[1732255380895,2.82775178,260.5,260.49,2.377201]
[1732255381899,9.53748209,260.51,260.49,2.377201]
[1732255382101,9.53748209,260.53,260.5,2.5]
[1732255382398,9.53748209,260.55,260.52,2.377201]
[1732255382583,2.82989004,260.54,260.52,2.377201]
[1732255382905,12.36737213,260.53,260.52,2.377201]
[1732255383282,12.36737213,260.53,260.5,2.5]
[1732255383491,9.53748209,260.53,260.5,2.5]
[1732255383993,9.53748209,260.53,260.5,4.877201]
[1732255384387,2.83194801,260.52,260.5,2.377201]
[1732255384585,16.1562,260.58,260.51,2.5]
[1732255384900,9.53748209,260.54,260.51,2.5]
[1732255385116,2.83279169,260.53,260.51,2.5]
[1732255385279,2.83279169,260.53,260.5,2.377201]
[1732255385478,2.83279169,260.53,260.51,2.5]
[1732255385783,2.83279169,260.53,260.51,4.877201]
[1732255386186,2.83279169,260.53,260.51,2.377201]
[1732255386392,2.83332582,260.52,260.51,2.377201]
[1732255386785,12.37080791,260.52,260.49,2.377201]
[1732255386996,9.53748209,260.5,260.45,9.877201]
[1732255387308,2.83332582,260.49,260.45,9.877201]
[1732255387799,9.53748209,260.48,260.45,7.377201]
[1732255387982,2.83332582,260.47,260.46,2.5]
[1732255388681,2.83668793,260.47,260.46,2.5]
[1732255388881,9.53748209,260.54,260.46,2.5]
[1732255389085,2.8370692,260.53,260.51,4.877201]
[1732255389291,2.8370692,260.52,260.51,2.377201]
[1732255389991,2.8370692,260.52,260.49,4.877201]
[1732255390192,9.53748209,260.51,260.49,4.877201]
[1732255390397,2.8370692,260.5,260.49,4.877201]
[1732255390786,16.1562,260.58,260.45,5.0]
[1732255390787,9.53748209,260.53,260.51,4.877201]
[1732255391100,2.83872592,260.52,260.51,4.877201]
[1732255391291,2.83872592,260.52,260.51,2.5]
[1732255391498,2.83872592,260.52,260.51,4.877201]
[1732255394721,2.83872592,260.52,260.51,2.5]
[1732255394881,2.83872592,260.52,260.51,4.877201]
[1732255398191,9.53748209,260.6,260.51,4.877201]
[1732255398391,2.84364588,260.59,260.58,2.377201]
[1732255399697,5.96469183,260.69,260.64,2.377201]
[1732255399890,2.84268858,260.68,260.67,4.877201]
[1732255401110,9.53748209,260.73,260.67,4.877201]
[1732255401302,9.53748209,260.73,260.72,2.377201]
[1732255401600,2.83847488,260.73,260.72,2.377201]
[1732255402395,5.96469183,260.77,260.72,2.377201]
[1732255402597,2.83719576,260.76,260.72,2.377201]
[1732255402901,35.91095002,260.85,260.64,20.0]
[1732255402902,2.83719576,260.75,260.74,4.877201]
[1732255403108,9.53748209,260.79,260.76,2.377201]
[1732255403289,2.83775981,260.78,260.77,2.5]
[1732255404192,9.53748209,260.79,260.77,2.5]
[1732255404521,2.83522989,260.78,260.77,2.5]
[1732255404689,27.23798367,260.88,260.76,2.377201]
[1732255404690,5.96469183,260.89,260.79,2.5]
[1732255404890,9.53748209,260.84,260.82,2.377201]
[1732255405091,2.8331023,260.83,260.82,2.377201]
[1732255405414,9.53748209,260.85,260.84,2.377201]
[1732255405608,12.36719913,260.85,260.84,4.877201]
[1732255406105,9.53748209,260.85,260.84,4.877201]
[1732255406513,29.13785516,260.95,260.86,2.5]
[1732255406689,9.53748209,260.91,260.88,2.377201]
[1732255406893,9.53748209,260.89,260.88,2.377201]
[1732255407100,9.53748209,260.89,260.84,2.377201]
[1732255407302,9.53748209,260.85,260.83,2.5]
[1732255408120,9.53748209,260.85,260.8,4.877201]
[1732255408417,9.53748209,260.81,260.8,4.877201]
[1732255408713,38.14992836,260.91,260.8,4.877201]
[1732255408714,14.87746456,260.83,260.8,4.877201]
[1732255408910,14.87746456,260.81,260.8,4.877201]
[1732255409113,14.87746456,260.81,260.78,2.5]
[1732255409298,14.87746456,260.79,260.78,2.5]
[1732255410624,14.87746456,260.79,260.78,4.877201]
[1732255411116,14.87746456,260.79,260.78,2.5]
[1732255411419,14.87746456,260.79,260.78,4.877201]
[1732255411805,7.79113596,260.91,260.83,2.377201]
[1732255412017,14.87746456,260.84,260.83,2.377201]
[1732255415423,14.87746456,260.84,260.83,4.877201]
[1732255415815,14.87746456,260.84,260.81,4.877201]
[1732255416015,14.87746456,260.84,260.83,2.377201]
[1732255417020,14.87746456,260.84,260.83,4.877201]
[1732255418104,14.87746456,260.84,260.83,2.377201]
[1732255418616,14.87746456,260.84,260.83,4.877201]
[1732255419125,14.87746456,260.84,260.79,2.377201]
[1732255419416,14.87746456,260.8,260.78,2.5]
[1732255419918,23.776884,260.79,260.75,2.377201]
[1732255420109,14.87746456,260.76,260.75,2.377201]
[1732255420913,23.776884,260.79,260.75,2.377201]
[1732255421101,14.87746456,260.76,260.75,2.377201]
[1732255421601,14.87746456,260.76,260.68,22.2674]
[1732255421602,14.87746456,260.76,260.72,2.377201]
[1732255421821,14.87746456,260.73,260.72,2.377201]
[1732255423718,14.87746456,260.75,260.74,4.877201]
[1732255425705,14.87746456,260.75,260.73,2.377201]
[1732255425904,14.87746456,260.74,260.73,2.377201]
[1732255426124,23.776884,260.73,260.69,2.377201]
[1732255426335,14.87746456,260.7,260.69,2.377201]
[1732255426627,14.87746456,260.7,260.67,2.377201]
[1732255426814,14.87746456,260.68,260.65,4.877201]
[1732255427020,14.87746456,260.66,260.65,4.877201]
[1732255427399,14.87746456,260.66,260.63,2.5]
[1732255427618,0.122799,260.76,260.65,2.377201]
[1732255427822,23.776884,260.77,260.66,2.5]
[1732255428029,14.87746456,260.67,260.66,2.5]
[1732255428331,14.87746456,260.67,260.65,2.377201]
[1732255429427,14.87746456,260.67,260.66,2.5]
[1732255429628,38.65434856,260.67,260.66,2.5]
[1732255432726,7.48359642,260.78,260.71,2.377201]
[1732255432953,14.87746456,260.72,260.71,2.377201]
[1732255434014,38.65434856,260.72,260.71,2.377201]
[1732255434621,33.3081804,260.72,260.71,2.377201]
[1732255440715,9.5312964,260.72,260.71,2.377201]
[1732255441717,23.776884,260.77,260.72,2.5]
[1732255442038,33.3081804,260.73,260.72,2.5]
[1732255442929,23.776884,260.73,260.72,2.5]
[1732255443132,33.3081804,260.73,260.72,2.5]
[1732255443910,15.1503,260.83,260.76,2.377201]
[1732255444113,9.5312964,260.77,260.76,2.377201]
[1732255445610,33.3081804,260.77,260.76,2.377201]
[1732255445815,7.48218199,260.84,260.81,2.5]
[1732255446030,9.5312964,260.82,260.81,2.5]
[1732255446230,12.37286298,260.82,260.81,2.5]
[1732255446823,9.5312964,260.82,260.79,4.877201]
[1732255447023,9.5312964,260.8,260.79,2.377201]
[1732255447332,23.776884,260.79,260.78,2.377201]
[1732255447532,23.776884,260.79,260.76,2.377201]
[1732255447835,23.776884,260.76,260.74,2.377201]
[1732255448034,33.3081804,260.75,260.74,2.377201]
[1732255448336,23.776884,260.75,260.74,2.377201]
[1732255448536,33.3081804,260.75,260.72,2.377201]
[1732255448711,23.776884,260.74,260.73,2.5]
[1732255448910,23.776884,260.72,260.7,4.877201]
[1732255449117,9.5312964,260.71,260.7,4.877201]
[1732255449536,33.3081804,260.71,260.7,4.877201]
[1732255450225,33.3081804,260.71,260.7,3.10382371]
[1732255451018,23.776884,260.7,260.68,0.72662271]
[1732255451339,33.3081804,260.69,260.68,0.72662271]
[1732255452039,33.3081804,260.69,260.66,0.72662271]
[1732255452246,33.3081804,260.69,260.65,2.377201]
[1732255452247,9.5312964,260.67,260.65,2.377201]